[Event "EICC 2017"]
[Site "Minsk"]
[Date "2017.06.09"]
[Round "10"]
[White "Ragger, Markus"]
[Black "Galliamova, Alisa"]
[Result "1-0"]
[ECO "C45"]
[WhiteElo "2680"]
[BlackElo "2456"]
[Annotator "RC"]
[PlyCount "91"]
[EventDate "2017.??.??"]
[EventCountry "BLR"]
[SourceTitle "playchess.com"]
[Source "ChessBase"]
[SourceQuality "1"]
[TimeControl "40/5400+30:1800+30"]

1. e4 {[%emt 0:00:00]} e5 {[%emt 0:00:22]} 2. Nf3 {[%emt 0:00:00]} Nc6 {[%emt 0:00:06]} 3. d4 {[%emt 0:00:00]} exd4 {[%emt 0:00:19]} 4. Nxd4 {[%emt 0:00:00]} Bc5 {[%emt 0:00:42]} 5. Nb3 {[%emt 0:00:00]} Bb6 {[%emt 0:01:52]} 6. Nc3 {[%emt 0:00:00]} Nf6 {[%emt 0:00:18]} 7. Bg5 {[%emt 0:00:05]} h6 {[%emt 0:04:16]} 8. Bh4 {[%emt 0:00:10]} O-O {[%emt 0:02:54]} 9. Bd3 {[%emt 0:02:36]} Re8 {[%emt 0:12:30]} 10. O-O {[%emt 0:04:14]} d6 {[%emt 0:03:23]} 11. a4 {[%emt 0:12:19]} g5 {[%emt 0:13:47]} 12. Bg3 {[%emt 0:01:42]} Bg4 {[%emt 0:01:03]} 13. Qd2 {[%emt 0:02:05]} a6 {[%emt 0:03:37]} 14. Kh1 {[%emt 0:02:04]} Be6 {[%emt 0:03:35]} 15. Rae1 {[%emt 0:19:20]} Ne5 {[%emt 0:08:49]} 16. Be2 {[%emt 0:03:35]} Bxb3 {[%emt 0:06:29]} 17. cxb3 {[%emt 0:00:49]} Ng6 {[%emt 0:00:29]} 18. Bc4 {[%emt 0:05:38]} Ne5 {[%emt 0:03:34]} 19. f4 {[%emt 0:01:26]} Nxc4 {[%emt 0:00:22]} 20. bxc4 {[%emt 0:00:02]} Ba5 {[%emt 0:21:26]} 21. fxg5 {[%emt 0:13:23]} Bxc3 {[%emt 0:00:08]} 22. bxc3 {[%emt 0:00:34]} Nxe4 {[%emt 0:02:20]} 23. Qf4 {[%emt 0:02:48]} Nxg5 {[%emt 0:04:16]} 24. h4 {[%emt 0:02:00]} Rxe1 {[%emt 0:00:14]} 25. Bxe1 {[%emt 0:00:26]} Nh7 {[%emt 0:00:34]} 26. Qxf7+ {[%emt 0:05:06]} Kh8 {[%emt 0:00:06]} 27. c5 {[%emt 0:00:02]} Qf8 {[%emt 0:02:21]} 28. c4 {[%emt 0:00:57]} Qg7 {[%emt 0:02:19]} 29. Qf3 {[%emt 0:02:01]} Rf8 {[%emt 0:01:47]} 30. Bc3 {[%emt 0:00:02]} Rxf3 {[%emt 0:00:10]} 31. Rxf3 {[%emt 0:00:07]} dxc5 {[%emt 0:00:17]} 32. Bxg7+ {[%emt 0:01:34]} Kxg7 {[%emt 0:00:05]} 33. a5 {[%emt 0:00:04]} b6 {[%emt 0:00:21]} 34. axb6 {[%emt 0:03:01]} cxb6 {[%emt 0:00:05]} 35. Rb3 {[%emt 0:00:01]} b5 {[%emt 0:00:41]} 36. cxb5 {[%emt 0:00:02]} axb5 {[%emt 0:00:05]} 37. Rxb5 {[%emt 0:00:05]} Nf6 {[%emt 0:01:51]} 38. Rxc5 {[%emt 0:00:04]} Kg6 {[%emt 0:00:03]} 39. Kh2 {[%emt 0:00:49]} Kg7 {[%emt 0:00:04]} 40. Ra5 {[%emt 0:00:00]} Kg6 {[%emt 0:00:38]} 41. Kg3 {[%emt 0:00:27]} Nh5+ {[%emt 0:00:11]} 42. Kf3 {[%emt 0:00:18]} Nf6 {[%emt 0:00:07]} 43. g4 {[%emt 0:01:03]} Kg7 {[%emt 0:01:59]} 44. Kf4 {[%emt 0:01:10]} Ng8 {[%emt 0:00:15]} 45. Ke5 {[%emt 0:00:22]} Kg6 {[%emt 0:00:40]} 46. Ke6 {[%emt 0:01:03]} 1-0